fUST/lending_fUST_20250226
["ID","MTS","AMOUNT","RATE_DAILY","PERIOD"]
[354530198,1740558683155,-500.0,0.00039167,2]
[354530199,1740558683165,-500.0,0.00039167,2]
[354530200,1740558683174,-636.88,0.00039167,2]
[354530201,1740558683184,-500.0,0.00039167,2]
[354530202,1740558683194,-501.84543307,0.00039167,2]
[354530203,1740558683204,-680.1,0.00039167,2]
[354530204,1740558683214,-500.0,0.00039167,2]
[354530205,1740558683225,-500.0,0.00039167,2]
[354530206,1740558683235,-500.0,0.00039167,2]
[354530207,1740558683244,-500.0,0.00039167,2]
[354530208,1740558683254,-775.53,0.00039167,2]
[354530209,1740558683263,-500.0,0.00039167,2]
[354530210,1740558683274,-299.96628303,0.00039167,2]
[354530211,1740558683288,-500.0,0.00039167,2]
[354530212,1740558683297,-500.0,0.00039167,2]
[354530213,1740558683308,-500.0,0.00039167,2]
[354530214,1740558683317,-177.894896,0.00039167,14]
[354530215,1740558683328,-604.16,0.00039167,2]
[354530216,1740558683338,-500.0,0.00039167,2]
[354530217,1740558683456,-500.0,0.00039167,2]
[354530218,1740558683467,-542.14,0.00039167,2]
[354530219,1740558683478,-500.0,0.00039167,2]
[354530220,1740558683488,-500.0,0.00039167,2]
[354530221,1740558683498,-500.0,0.00039167,2]
[354530222,1740558683508,-500.0,0.00039167,2]
[354530223,1740558683518,-500.0,0.00039167,2]
[354530224,1740558683527,-500.0,0.00039167,2]
[354530225,1740558683536,-500.0,0.00039167,2]
[354530226,1740558683546,-500.0,0.00039167,2]
[354530227,1740558683555,-500.0,0.00039176,2]
[354530228,1740558683564,-500.0,0.00039176,2]
[354530229,1740558683574,-500.0,0.00039176,2]
[354530230,1740558683583,-500.0,0.00039176,2]
[354530231,1740558683593,-554.44,0.00039176,2]
[354530232,1740558683603,-500.0,0.00039176,2]
[354530233,1740558683612,-500.0,0.00039176,2]
[354530234,1740558683622,-500.0,0.00039176,2]
[354530235,1740558683633,-500.0,0.00039176,2]
[354530236,1740558683644,-478.58773144,0.00039176,2]
[354530237,1740558683654,-500.0,0.00039176,2]
[354530238,1740558683664,-500.0,0.00039176,2]
[354530239,1740558683674,-500.0,0.00039176,2]
[354530240,1740558683684,-717.11,0.00039176,2]
[354530241,1740558683693,-521.82712947,0.00039176,2]
[354530242,1740558683704,-500.0,0.00039176,2]
[354530243,1740558683713,-500.0,0.00039176,2]
[354530244,1740558683723,-500.0,0.00039176,2]
[354530245,1740558683733,-500.0,0.00039176,2]
[354530246,1740558683742,-500.0,0.00039176,2]
[354530247,1740558683751,-574.85295498,0.00039176,2]
[354530248,1740558683761,-500.0,0.00039176,2]
[354530249,1740558683772,-500.0,0.00039176,2]
[354530250,1740558683781,-500.0,0.00039176,2]
[354530251,1740558683790,-500.0,0.00039176,2]
[354530252,1740558683800,-500.0,0.00039176,2]
[354530253,1740558683809,-500.0,0.00039176,2]
[354530254,1740558683819,-300.0,0.00039176,120]
[354530255,1740558683828,-500.0,0.00039176,2]
[354530256,1740558683837,-500.0,0.00039176,2]
[354530257,1740558683847,-639.26,0.00039176,2]
[354530258,1740558683856,-500.0,0.00039176,2]
[354530259,1740558683865,-500.0,0.00039176,2]
[354530260,1740558683875,-500.0,0.00039176,2]
[354530261,1740558683886,-500.0,0.00039176,2]
[354530262,1740558683895,-500.0,0.00039176,2]
[354530263,1740558683905,-500.0,0.00039176,2]
[354530264,1740558683916,-500.0,0.00039176,2]
[354530265,1740558683927,-500.0,0.00039176,2]
[354530266,1740558683938,-500.0,0.00039176,2]
[354530267,1740558683949,-312.58581069,0.00039176,2]
[354530268,1740558683959,-500.0,0.00039176,2]
[354530269,1740558683968,-500.0,0.00039176,2]
[354530270,1740558683978,-500.0,0.00039176,2]
[354530271,1740558683988,-500.0,0.00039176,2]
[354530272,1740558683999,-586.05,0.00039176,2]
[354530273,1740558684008,-631.33360392,0.00039176,2]
[354530274,1740558684018,-627.61735783,0.00039176,2]
[354530275,1740558684027,-500.0,0.00039176,2]
[354530276,1740558684037,-500.0,0.00039176,2]
[354530277,1740558684046,-500.0,0.00039176,2]
[354530278,1740558684055,-500.0,0.00039176,2]
[354530279,1740558684065,-500.0,0.00039176,2]
[354530280,1740558684074,-500.0,0.00039176,2]
[354530281,1740558684083,-500.0,0.00039176,2]
[354530282,1740558684093,-500.0,0.00039176,2]
[354530283,1740558684104,-500.0,0.00039176,2]
[354530284,1740558684114,-570.89227641,0.00039176,2]
[354530285,1740558684123,-500.0,0.00039176,2]
[354530286,1740558684133,-500.0,0.00039176,2]
[354530287,1740558684142,-500.0,0.00039176,2]
[354530288,1740558684151,-500.0,0.00039176,2]
[354530289,1740558684160,-561.33,0.00039176,2]
[354530290,1740558684170,-500.0,0.00039176,2]
[354530291,1740558684179,-500.0,0.00039176,2]
[354530292,1740558684188,-500.0,0.00039176,2]
[354530293,1740558684198,-500.0,0.00039176,2]
[354530294,1740558684207,-565.23,0.00039176,2]
[354530295,1740558684216,-500.0,0.00039176,2]
[354530296,1740558684226,-500.0,0.00039176,2]
[354530297,1740558684237,-500.0,0.00039176,2]
[354530298,1740558684246,-528.37,0.00039176,2]
[354530299,1740558684255,-613.55,0.00039176,2]
[354530300,1740558684264,-648.85,0.00039176,2]
[354530301,1740558684274,-500.0,0.00039176,2]
[354530302,1740558684285,-500.0,0.00039176,2]
[354530303,1740558684295,-500.0,0.00039176,2]
[354530304,1740558684305,-500.0,0.00039176,2]
[354530305,1740558684317,-500.0,0.00039176,2]
[354530306,1740558684332,-500.0,0.00039176,2]
[354530307,1740558684345,-500.0,0.00039176,2]
[354530308,1740558684359,-500.0,0.00039176,2]
[354530309,1740558684369,-500.0,0.00039176,2]
[354530310,1740558684380,-500.0,0.00039176,2]
[354530311,1740558684390,-500.0,0.00039176,2]
[354530312,1740558684399,-499.94543523,0.00039176,2]
[354530313,1740558684408,-500.0,0.00039176,2]
[354530314,1740558684418,-569.12,0.00039176,2]
[354530315,1740558684427,-500.0,0.00039176,2]
[354530316,1740558684437,-500.0,0.00039176,2]
[354530317,1740558684447,-819.68,0.00039176,2]
[354530318,1740558684457,-500.0,0.00039176,2]
[354530319,1740558684467,-507.76135394,0.00039176,2]
[354530320,1740558684477,-500.0,0.00039176,2]
[354530321,1740558684486,-690.47,0.00039176,2]
[354530322,1740558684496,-500.0,0.00039176,2]
[354530323,1740558684505,-564.17,0.00039176,2]
[354530324,1740558684515,-594.69480643,0.00039176,2]
[354530325,1740558684524,-681.33,0.00039176,2]
[354530326,1740558684534,-170.637319,0.00039177,14]
[354530327,1740558684543,-170.637319,0.00039177,14]
[354530328,1740558684553,-151.0,0.00039177,14]
[354530329,1740558684562,-500.0,0.00039177,2]
[354530330,1740558684571,-500.0,0.00039177,2]
[354530331,1740558684581,-500.0,0.00039177,2]
[354530332,1740558684590,-1934.61,0.00039177,2]
[354530333,1740558684599,-500.0,0.00039177,2]
[354530334,1740558684609,-791.41,0.00039177,2]
[354530335,1740558684618,-500.0,0.00039177,2]
[354530336,1740558684627,-500.0,0.00039177,2]
[354530337,1740558684637,-1419.4,0.00039177,2]
[354530338,1740558684646,-1936.09,0.00039177,2]
[354530339,1740558684655,-1160.21,0.00039177,2]
[354530340,1740558684665,-728.98,0.00039177,2]
[354530341,1740558684674,-500.0,0.00039177,2]
[354530342,1740558684683,-500.0,0.00039177,2]
[354530343,1740558684692,-2716.92,0.00039177,2]
[354530344,1740558684702,-1164.04,0.00039177,2]
[354530345,1740558684711,-962.5,0.00039177,2]
[354530346,1740558684720,-679.73,0.00039177,2]
[354530347,1740558684729,-5271.87,0.00039177,2]
[354530348,1740558684739,-2041.52,0.00039177,2]
[354530349,1740558684748,-1375.0,0.00039178,2]
[354530350,1740558684757,-418.3307912,0.00039178,2]
[354530351,1740558684766,-500.0,0.00039178,2]
[354530352,1740558684775,-500.0,0.00039178,2]
[354530353,1740558684784,-599.15827177,0.00039178,2]
[354530354,1740558684793,-231.12730587,0.00039178,2]
[354530355,1740558684802,-500.0,0.00039178,2]
[354530356,1740558684811,-500.0,0.00039178,2]
[354530357,1740558684821,-501.067029,0.00039178,2]
[354530358,1740558684830,-500.0,0.00039178,2]
[354530359,1740558684839,-500.0,0.00039178,2]
[354530360,1740558684848,-500.0,0.00039178,2]
[354530361,1740558684857,-500.0,0.00039178,2]
[354530362,1740558684866,-500.0,0.00039178,2]
[354530363,1740558684875,-500.0,0.00039178,2]
[354530364,1740558684885,-500.0,0.00039178,2]
[354530365,1740558684894,-500.0,0.00039178,2]
[354530366,1740558684903,-500.0,0.00039178,2]
[354530367,1740558684912,-500.0,0.00039178,2]
[354530368,1740558684922,-500.0,0.00039178,2]
[354530369,1740558684931,-500.0,0.00039178,2]
[354530370,1740558684941,-536.05514205,0.00039178,2]
[354530371,1740558684950,-500.0,0.00039178,2]
[354530372,1740558684959,-500.0,0.00039178,2]
[354530373,1740558684968,-500.0,0.00039178,2]
[354530374,1740558684978,-598.36898541,0.00039178,2]
[354530375,1740558684987,-500.0,0.00039178,2]
[354530376,1740558684996,-500.0,0.00039178,2]
[354530377,1740558685005,-500.0,0.00039178,2]
[354530378,1740558685015,-500.0,0.00039178,2]
[354530379,1740558685025,-500.0,0.00039178,2]
[354530380,1740558685034,-500.0,0.00039178,2]
[354530381,1740558685043,-500.0,0.00039178,2]
[354530382,1740558685053,-511.41776573,0.00039178,2]
[354530383,1740558685062,-500.0,0.00039178,2]
[354530384,1740558685072,-500.0,0.00039178,2]
[354530385,1740558685080,-500.0,0.00039178,2]
[354530386,1740558685090,-500.0,0.00039178,2]
[354530387,1740558685100,-787.39,0.00039178,2]
[354530388,1740558685110,-568.9459605,0.00039178,2]
[354530389,1740558685118,-500.0,0.00039178,2]
[354530390,1740558685128,-500.0,0.00039178,2]
[354530391,1740558685138,-500.0,0.00039178,2]
[354530392,1740558685147,-500.0,0.00039178,2]
[354530393,1740558685156,-331.09284077,0.00039178,2]
[354530394,1740558685166,-629.26909555,0.00039178,2]
[354530395,1740558685175,-500.0,0.00039178,2]
[354530396,1740558685184,-500.0,0.00039178,2]
[354530397,1740558685193,-500.0,0.00039178,2]
[354530398,1740558685203,-500.0,0.00039178,2]
[354530399,1740558685212,-683.71,0.00039178,2]
[354530400,1740558685221,-500.0,0.00039178,2]
[354530401,1740558685231,-500.0,0.00039178,2]
[354530402,1740558685240,-500.0,0.00039178,2]
[354530403,1740558685251,-500.0,0.00039178,2]
[354530404,1740558685261,-500.0,0.00039178,2]
[354530405,1740558685271,-500.0,0.00039178,2]
[354530406,1740558685285,-569.11,0.00039178,2]
[354530407,1740558685297,-500.0,0.00039178,2]
[354530408,1740558685307,-500.0,0.00039178,2]
[354530409,1740558685317,-277.92129658,0.00039178,2]
[354530410,1740558685327,-406.0212609,0.00039178,2]
[354530411,1740558685337,-500.0,0.00039178,2]
[354530412,1740558685347,-500.0,0.00039178,2]
[354530413,1740558685356,-500.0,0.00039178,2]
[354530414,1740558685366,-500.0,0.00039178,2]
[354530415,1740558685375,-500.0,0.00039178,2]
[354530416,1740558685387,-500.0,0.00039178,2]
[354530417,1740558685397,-500.0,0.00039178,2]
[354530418,1740558685406,-500.0,0.00039178,2]
[354530419,1740558685416,-500.0,0.00039178,2]
[354530420,1740558685425,-583.17267445,0.00039178,2]
[354530421,1740558685434,-500.0,0.00039178,2]
[354530422,1740558685443,-500.0,0.00039178,2]
[354530423,1740558685454,-500.0,0.00039178,2]
[354530424,1740558685463,-500.0,0.00039178,2]
[354530425,1740558685473,-174.15017517,0.00039178,2]
[354530426,1740558685482,-500.0,0.00039178,2]
[354530427,1740558685491,-168.66369259,0.00039178,2]
[354530428,1740558685501,-150.07101852,0.00039178,2]
[354530429,1740558685511,-500.0,0.00039178,2]
[354530430,1740558685520,-500.0,0.00039178,2]
[354530431,1740558685530,-500.0,0.00039178,2]
[354530432,1740558685538,-500.0,0.00039178,2]
[354530433,1740558685548,-512.7,0.00039178,2]
[354530434,1740558685666,-500.0,0.00039178,2]
[354530435,1740558685676,-504.59382959,0.00039178,2]
[354530436,1740558685686,-500.0,0.00039178,2]
[354530437,1740558685696,-500.0,0.00039178,2]
[354530438,1740558685705,-500.0,0.00039178,2]
[354530439,1740558685715,-500.0,0.00039178,2]
[354530440,1740558685724,-500.0,0.00039178,2]
[354530441,1740558685733,-499.76404264,0.00039178,2]
[354530442,1740558685742,-500.0,0.00039178,2]
[354530443,1740558685752,-505.6646325,0.00039178,2]
[354530444,1740558685761,-500.0,0.00039178,2]
[354530445,1740558685772,-500.0,0.00039178,2]
[354530446,1740558685781,-500.0,0.00039178,2]
[354530447,1740558685790,-500.0,0.00039178,2]
[354530448,1740558685799,-500.0,0.00039178,2]
[354530449,1740558685808,-555.85204641,0.00039178,2]
[354530450,1740558685817,-500.0,0.00039178,2]
[354530451,1740558685827,-500.0,0.00039178,2]
[354530452,1740558685837,-500.0,0.00039178,2]
[354530453,1740558685846,-562.39,0.00039178,2]
[354530454,1740558685855,-578.94,0.00039178,2]
[354530455,1740558685864,-606.22781097,0.00039178,2]
[354530456,1740558685873,-500.0,0.00039178,2]
[354530457,1740558685883,-500.0,0.00039178,2]
[354530458,1740558685892,-559.37376129,0.00039178,2]
[354530459,1740558685901,-500.0,0.00039178,2]
[354530460,1740558685910,-500.0,0.00039178,2]
[354530461,1740558685919,-500.0,0.00039178,2]
[354530462,1740558685928,-546.82615334,0.00039178,2]
[354530463,1740558685937,-859.52,0.00039178,2]
[354530464,1740558685946,-500.0,0.00039178,2]
[354530465,1740558685955,-500.0,0.00039178,2]
[354530466,1740558685966,-500.0,0.00039178,2]
[354530467,1740558685975,-315.99257805,0.00039178,2]
[354530468,1740558685985,-500.89859855,0.00039178,2]
[354530469,1740558685995,-703.42,0.00039178,2]
[354530470,1740558686007,-500.0,0.00039178,2]
[354530471,1740558686016,-500.0,0.00039178,2]
[354530472,1740558686026,-500.0,0.00039178,2]
[354530473,1740558686035,-500.0,0.00039178,2]
[354530474,1740558686045,-500.0,0.00039178,2]
[354530475,1740558686055,-259.55441264,0.00039178,2]
[354530476,1740558686064,-500.0,0.00039178,2]
[354530477,1740558686073,-500.0,0.00039178,2]
[354530478,1740558686083,-500.0,0.00039178,2]
[354530479,1740558686092,-500.0,0.00039178,65]
[354530480,1740558686102,-500.0,0.00039178,2]
[354530481,1740558686111,-500.0,0.00039178,2]
[354530482,1740558686121,-540.49408837,0.00039178,2]
[354530483,1740558686132,-500.0,0.00039178,2]
[354530484,1740558686142,-500.0,0.00039178,2]
[354530485,1740558686152,-500.0,0.00039178,2]
[354530486,1740558686162,-667.32,0.00039178,2]
[354530487,1740558686171,-616.8,0.00039178,2]
[354530488,1740558686180,-500.0,0.00039178,2]
[354530489,1740558686190,-503.2613934,0.00039178,2]
[354530490,1740558686200,-500.0,0.00039178,2]
[354530491,1740558686209,-500.0,0.00039178,2]
[354530492,1740558686219,-500.0,0.00039178,2]
[354530493,1740558686229,-661.5,0.00039178,2]
[354530494,1740558686239,-504.25620274,0.00039178,2]
[354530495,1740558686248,-500.0,0.00039178,2]
[354530496,1740558686258,-500.0,0.00039178,2]
[354530497,1740558686268,-500.0,0.00039178,2]
[354530498,1740558686280,-548.04628182,0.00039178,2]
[354530499,1740558686292,-500.0,0.00039178,2]
[354530500,1740558686302,-500.0,0.00039178,2]
[354530501,1740558686312,-506.63511782,0.00039178,2]
[354530502,1740558686324,-510.79,0.00039178,2]
[354530503,1740558686334,-500.0,0.00039178,2]
[354530504,1740558686344,-505.41146534,0.00039178,2]
[354530505,1740558686354,-533.3845628,0.00039178,2]
[354530506,1740558686364,-648.21682043,0.00039178,2]
[354530507,1740558686374,-504.35927756,0.00039178,2]
[354530508,1740558686388,-500.0,0.00039178,2]
[354530509,1740558686399,-500.0,0.00039178,2]
[354530510,1740558686408,-802.93,0.00039178,2]
[354530511,1740558686418,-500.0,0.00039178,2]
[354530512,1740558686428,-500.0,0.00039178,2]
[354530513,1740558686438,-500.0,0.00039178,2]
[354530514,1740558686448,-500.0,0.00039178,2]
[354530515,1740558686458,-500.0,0.00039178,2]
[354530516,1740558686468,-500.0,0.00039178,2]
[354530517,1740558686477,-500.0,0.00039178,2]
[354530518,1740558686487,-500.0,0.00039178,2]
[354530519,1740558686497,-500.0,0.00039178,2]
[354530520,1740558686508,-500.0,0.00039178,2]
[354530521,1740558686518,-569.52,0.00039178,2]
[354530522,1740558686528,-500.0,0.00039178,2]
[354530523,1740558686538,-500.0,0.00039178,2]
[354530524,1740558686549,-500.0,0.00039178,2]
[354530525,1740558686560,-503.04,0.00039178,2]
[354530526,1740558686570,-500.0,0.00039178,2]
[354530527,1740558686579,-523.65718798,0.00039178,2]
[354530528,1740558686589,-500.0,0.00039178,2]
[354530529,1740558686598,-723.89,0.00039178,2]
[354530530,1740558686608,-500.38,0.00039178,2]
[354530531,1740558686617,-500.0,0.00039178,2]
[354530532,1740558686626,-500.0,0.00039178,2]
[354530533,1740558686640,-501.5,0.00039178,2]
[354530534,1740558686650,-500.0,0.00039178,2]
[354530535,1740558686660,-512.87,0.00039178,2]
[354530536,1740558686671,-409.8083741,0.00039178,2]
[354530537,1740558686681,-500.0,0.00039178,2]
[354530538,1740558686691,-500.0,0.00039178,2]
[354530539,1740558686701,-500.0,0.00039178,2]
[354530540,1740558686712,-186.322582,0.00039178,14]
[354530541,1740558686721,-186.322582,0.00039178,14]
[354530542,1740558686731,-614.65,0.00039178,2]
[354530543,1740558686740,-500.0,0.00039178,2]
[354530544,1740558686750,-500.0,0.00039178,2]
[354530545,1740558686759,-500.0,0.00039178,2]
[354530546,1740558686770,-170.637319,0.00039178,14]
[354530547,1740558686779,-170.637319,0.00039178,14]
[354530548,1740558686789,-624.83,0.00039178,2]
[354530549,1740558686799,-151.0,0.00039178,14]
[354530550,1740558686808,-589.02,0.00039178,2]
[354530551,1740558686817,-889.66,0.00039178,2]
[354530552,1740558686827,-500.0,0.00039178,2]
[354530553,1740558686836,-1136.23,0.00039178,2]
[354530554,1740558686845,-1804.81,0.00039178,2]
[354530555,1740558686855,-1190.11,0.00039178,2]
[354530556,1740558686865,-2633.89,0.00039178,2]
[354530557,1740558686875,-535.35,0.00039178,2]
[354530558,1740558686886,-770.85,0.00039178,2]
[354530559,1740558686895,-1556.33,0.00039178,2]
[354530560,1740558686905,-700.46,0.00039178,2]
[354530561,1740558686914,-911.0,0.00039178,2]
[354530562,1740558686924,-1160.43,0.00039178,2]
[354530563,1740558686933,-583.33,0.00039178,2]
[354530564,1740558686943,-583.33,0.00039178,2]
[354530565,1740558686952,-626.63,0.00039178,2]
[354530566,1740558686961,-518.21,0.00039178,2]
[354530567,1740558686971,-546.93003589,0.00039178,2]
[354530568,1740558686981,-547.06,0.00039178,2]
[354530569,1740558686990,-500.0,0.00039226,2]
[354530570,1740558686999,-500.0,0.00039226,2]
[354530571,1740558687010,-837.37,0.00039226,2]
[354530572,1740558687019,-500.0,0.00039226,2]
[354530573,1740558687028,-500.0,0.00039226,2]
[354530574,1740558687037,-1223.33,0.00039226,2]
[354530575,1740558687047,-500.0,0.00039226,2]
[354530576,1740558687056,-500.0,0.00039226,2]
[354530577,1740558687066,-746.59,0.00039226,2]
[354530578,1740558687075,-996.86,0.00039226,2]
[354530579,1740558687086,-649.16,0.00039226,2]
[354530580,1740558687095,-500.0,0.00039226,2]
[354530581,1740558687104,-809.19,0.00039226,2]
[354530582,1740558687114,-500.0,0.00039226,2]
[354530583,1740558687124,-500.0,0.00039226,2]
[354530584,1740558687135,-500.0,0.00039226,2]
[354530585,1740558687145,-807.31,0.00039226,2]
[354530586,1740558687155,-551.31,0.00039226,2]
[354530587,1740558687167,-500.0,0.00039226,2]
[354530588,1740558687176,-500.0,0.00039226,2]
[354530589,1740558687185,-1093.48,0.00039226,2]
[354530590,1740558687195,-923.19,0.00039226,2]
[354530591,1740558687204,-937.3,0.00039226,2]
[354530592,1740558687214,-500.0,0.00039226,2]
[354530593,1740558687223,-500.0,0.00039226,2]
[354530594,1740558687232,-731.22,0.00039226,2]
[354530595,1740558687242,-836.16,0.00039226,2]
[354530596,1740558687251,-1435.65,0.00039226,2]
[354530597,1740558687261,-1482.81,0.00039226,2]
[354530598,1740558687270,-745.96,0.00039226,2]
[354530599,1740558687282,-1248.13,0.00039226,2]
[354530600,1740558687291,-631.6,0.00039226,2]
[354530601,1740558687300,-500.0,0.00039226,2]
[354530602,1740558687310,-500.0,0.00039226,2]
[354530603,1740558687320,-691.31,0.00039226,2]
[354530604,1740558687330,-1944.22,0.00039226,2]
[354530605,1740558687339,-612.01130235,0.00039226,2]
[354530606,1740558687348,-500.0,0.00039226,2]
[354530607,1740558687358,-478.90296338,0.00039226,2]
[354530608,1740558687368,-934.6,0.00039226,2]
[354530609,1740558687377,-729.0,0.00039226,2]
[354530610,1740558687388,-936.38,0.00039226,2]
[354530611,1740558687398,-683.43,0.00039226,2]
[354530612,1740558687407,-844.03,0.00039226,2]
[354530613,1740558687417,-571.6,0.00039226,2]
[354530614,1740558687426,-500.0,0.00039226,2]
[354530615,1740558687435,-876.55,0.00039226,2]
[354530616,1740558687444,-519.21,0.00039226,2]
[354530617,1740558687453,-500.0,0.00039226,2]
[354530618,1740558687463,-884.18,0.00039226,2]
[354530619,1740558687473,-763.01,0.00039226,2]
[354530620,1740558687482,-500.0,0.00039226,2]
[354530621,1740558687491,-635.38,0.00039226,2]
[354530622,1740558687501,-500.0,0.00039226,2]
[354530623,1740558687510,-500.0,0.00039226,2]
[354530624,1740558687520,-500.0,0.00039226,2]
[354530625,1740558687530,-5538.76,0.00039226,2]
[354530626,1740558687540,-784.71,0.00039226,2]
[354530627,1740558687549,-500.0,0.00039226,2]
[354530628,1740558687558,-751.07,0.00039226,2]
[354530629,1740558687568,-511.78,0.00039226,2]
[354530630,1740558687577,-642.18,0.00039226,2]
[354530631,1740558687586,-186.05311889,0.00039226,2]
[354530632,1740558687597,-500.0,0.00039226,2]
[354530633,1740558687607,-674.65,0.00039226,2]
[354530634,1740558687720,-726.46,0.00039226,2]
[354530635,1740558687730,-745.5,0.00039226,2]
[354530636,1740558687739,-500.0,0.00039226,2]
[354530637,1740558687749,-503.2,0.00039226,2]
[354530638,1740558687758,-500.0,0.00039226,2]
[354530639,1740558687769,-500.0,0.00039226,2]
[354530640,1740558687779,-500.0,0.00039441,2]
[354530641,1740558687788,-500.0,0.00039441,2]
[354530642,1740558687798,-500.0,0.00039441,2]
[354530643,1740558687807,-500.0,0.00039441,2]
[354530644,1740558687817,-500.0,0.00039441,2]
[354530645,1740558687827,-500.0,0.00039441,2]
[354530646,1740558687836,-500.0,0.00039441,2]
[354530647,1740558687845,-395.07634735,0.00039441,2]
[354530648,1740558687855,-785.72,0.00039441,2]
[354530649,1740558687865,-500.0,0.00039441,2]
[354530650,1740558687874,-507.03300518,0.00039441,2]
[354530651,1740558687885,-500.0,0.00039441,2]
[354530652,1740558687895,-500.0,0.00039441,2]
[354530653,1740558687905,-500.0,0.00039441,2]
[354530654,1740558687914,-500.0,0.00039441,2]
[354530655,1740558687925,-500.0,0.00039441,2]
[354530656,1740558687934,-500.0,0.00039441,2]
[354530657,1740558687944,-500.0,0.00039441,2]
[354530658,1740558687953,-500.0,0.00039441,2]
[354530659,1740558687963,-500.0,0.00039441,2]
[354530660,1740558687972,-500.0,0.00039441,2]
[354530661,1740558687981,-500.0,0.00039441,2]
[354530662,1740558687990,-507.49660039,0.00039441,2]
[354530663,1740558688000,-500.0,0.00039441,2]
[354530664,1740558688010,-629.15501364,0.00039441,2]
[354530665,1740558688019,-500.0,0.00039441,2]
[354530666,1740558688029,-930.16,0.00039441,2]
[354530667,1740558688039,-500.0,0.00039441,2]
[354530668,1740558688048,-639.3,0.00039441,2]
[354530669,1740558688057,-500.0,0.00039441,2]
[354530670,1740558688067,-641.45,0.00039441,2]
[354530671,1740558688077,-500.0,0.00039441,2]
[354530672,1740558688086,-500.0,0.00039441,2]
[354530673,1740558688096,-500.0,0.00039441,2]
[354530674,1740558688108,-500.0,0.00039441,2]
[354530675,1740558688117,-500.0,0.00039441,2]
[354530676,1740558688127,-500.0,0.00039441,2]
[354530677,1740558688144,-626.59,0.00039441,2]
[354530678,1740558688154,-500.0,0.00039441,2]
[354530679,1740558688163,-500.0,0.00039441,2]
[354530680,1740558688172,-500.0,0.00039441,2]
[354530681,1740558688182,-500.0,0.00039441,2]
[354530682,1740558688192,-500.0,0.00039441,2]
[354530683,1740558688201,-603.2708573,0.00039441,2]
[354530684,1740558688213,-500.0,0.00039441,2]
[354530685,1740558688223,-500.0,0.00039441,2]
[354530686,1740558688234,-250.0,0.00039441,2]
[354530687,1740558688243,-500.0,0.00039441,2]
[354530688,1740558688253,-500.0,0.00039441,2]
[354530689,1740558688263,-500.0,0.00039441,2]
[354530690,1740558688272,-500.0,0.00039441,2]
[354530691,1740558688283,-500.0,0.00039441,2]
[354530692,1740558688296,-500.0,0.00039441,2]
[354530693,1740558688306,-656.28,0.00039441,2]
[354530694,1740558688315,-500.0,0.00039441,2]
[354530695,1740558688327,-510.17498857,0.00039441,2]
[354530696,1740558688336,-500.0,0.00039441,2]
[354530697,1740558688345,-500.0,0.00039441,2]